[Event "*** Titled Tuesday Blitz"]
[Site "Chess.com"]
[Date "2020.11.03"]
[Round "4"]
[White "MaxLeto"]
[Black "Evachess2006"]
[Result "1-0"]
[WhiteElo "2361"]
[BlackElo "1640"]
[TimeControl "180+1"]
[EndTime "10:41:16 PST"]
[Termination "MaxLeto won on time"]

1. g4 {[%clk 0:02:49.9]} 1... d5 {[%clk 0:02:53.1]} 2. Bg2 {[%clk 0:02:48.9]}
2... Nc6 {[%clk 0:02:53.3]} 3. g5 {[%clk 0:02:44.8]} 3... e5 {[%clk 0:02:27.6]}
4. h4 {[%clk 0:02:43.3]} 4... Be6 {[%clk 0:02:15.1]} 5. d3 {[%clk 0:02:24.1]}
5... Bc5 {[%clk 0:02:00.4]} 6. Nc3 {[%clk 0:02:22]} 6... Nge7 {[%clk 0:01:45.5]}
7. e4 {[%clk 0:02:20.2]} 7... d4 {[%clk 0:01:21.9]} 8. Nce2 {[%clk 0:02:20]}
8... Qd7 {[%clk 0:01:14.9]} 9. f4 {[%clk 0:02:19.4]} 9... O-O-O {[%clk
0:00:56.8]} 10. f5 {[%clk 0:02:17.7]} 10... Bxf5 {[%clk 0:00:52.5]} 11. exf5
{[%clk 0:02:17.6]} 11... Nxf5 {[%clk 0:00:53.1]} 12. Bh3 {[%clk 0:01:58.3]}
12... Nce7 {[%clk 0:00:42.9]} 13. Ng3 {[%clk 0:01:53.8]} 13... g6 {[%clk
0:00:30.5]} 14. Bd2 {[%clk 0:01:42.4]} 14... Qc6 {[%clk 0:00:10.6]} 15. Qf3
{[%clk 0:01:40.6]} 15... Qxf3 {[%clk 0:00:08.1]} 16. Nxf3 {[%clk 0:01:41.5]}
16... Kb8 {[%clk 0:00:04.4]} 17. Nxf5 {[%clk 0:01:41.1]} 17... Nxf5 {[%clk
0:00:04.5]} 18. Bxf5 {[%clk 0:01:41.4]} 18... gxf5 {[%clk 0:00:05.3]} 19. O-O-O
{[%clk 0:01:41.5]} 19... Rhe8 {[%clk 0:00:05.9]} 20. Rde1 {[%clk 0:01:41.4]}
20... e4 {[%clk 0:00:06.5]} 21. Ng1 {[%clk 0:00:21.7]} 1-0

[Event "*** Titled Tuesday Blitz"]
[Site "Chess.com"]
[Date "2020.11.03"]
[Round "4"]
[White "Guenplen"]
[Black "hungrycaterpillar4"]
[Result "1-0"]
[WhiteElo "2892"]
[BlackElo "2566"]
[TimeControl "180+1"]
[EndTime "10:41:17 PST"]
[Termination "Guenplen won by resignation"]

1. d4 {[%clk 0:03:00.9]} 1... d5 {[%clk 0:03:00.1]} 2. Bf4 {[%clk 0:03:01]} 2...
c5 {[%clk 0:02:58.3]} 3. e4 {[%clk 0:03:00.6]} 3... dxe4 {[%clk 0:02:57.7]} 4.
d5 {[%clk 0:03:01.1]} 4... Nf6 {[%clk 0:02:58.3]} 5. Nc3 {[%clk 0:03:01.2]} 5...
g6 {[%clk 0:02:58.9]} 6. Bb5+ {[%clk 0:02:54.2]} 6... Bd7 {[%clk 0:02:58.6]} 7.
Qe2 {[%clk 0:02:53.9]} 7... Bg7 {[%clk 0:02:57.9]} 8. O-O-O {[%clk 0:02:51.1]}
8... O-O {[%clk 0:02:57.4]} 9. f3 {[%clk 0:02:42.8]} 9... e3 {[%clk 0:02:45]}
10. Bxe3 {[%clk 0:02:37.6]} 10... a6 {[%clk 0:02:45.1]} 11. Bxd7 {[%clk
0:02:31.4]} 11... Nbxd7 {[%clk 0:02:44.9]} 12. Nh3 {[%clk 0:02:23.6]} 12... b5
{[%clk 0:02:43.8]} 13. Ng5 {[%clk 0:02:19.1]} 13... Qa5 {[%clk 0:02:33.7]} 14.
Kb1 {[%clk 0:02:18.7]} 14... Rac8 {[%clk 0:02:17.8]} 15. h4 {[%clk 0:02:13.5]}
15... b4 {[%clk 0:02:16.8]} 16. Nce4 {[%clk 0:02:11.9]} 16... Nxe4 {[%clk
0:02:17.4]} 17. Nxe4 {[%clk 0:02:01.1]} 17... Nb6 {[%clk 0:02:10.1]} 18. h5
{[%clk 0:01:57.5]} 18... Na4 {[%clk 0:02:01.8]} 19. b3 {[%clk 0:01:43.9]} 19...
f5 {[%clk 0:01:59.7]} 20. bxa4 {[%clk 0:01:42.5]} 20... fxe4 {[%clk 0:01:58.5]}
21. Qc4 {[%clk 0:01:38.6]} 21... Rf7 {[%clk 0:01:16.4]} 22. hxg6 {[%clk
0:01:37.8]} 22... hxg6 {[%clk 0:01:16.9]} 23. d6 {[%clk 0:01:36.8]} 23... e6
{[%clk 0:00:21.6]} 24. Qxe6 {[%clk 0:01:28.3]} 24... Rd8 {[%clk 0:00:21]} 25.
Rh7 {[%clk 0:00:52.4]} 25... b3 {[%clk 0:00:09.2]} 26. Rxg7+ {[%clk 0:00:51.9]}
26... Kxg7 {[%clk 0:00:08.9]} 27. axb3 {[%clk 0:00:52.4]} 27... Qc3 {[%clk
0:00:06.5]} 28. Bc1 {[%clk 0:00:46.6]} 28... exf3 {[%clk 0:00:04.9]} 29. Bb2
{[%clk 0:00:43.1]} 29... Qxb2+ {[%clk 0:00:04.4]} 30. Kxb2 {[%clk 0:00:44]}
30... fxg2 {[%clk 0:00:05]} 31. Rg1 {[%clk 0:00:41.6]} 1-0

[Event "*** Titled Tuesday Blitz"]
[Site "Chess.com"]
[Date "2020.11.03"]
[Round "4"]
[White "GM_Levan_Pantsulaia"]
[Black "Lion-Al-Messi"]
[Result "0-1"]
[WhiteElo "2827"]
[BlackElo "2558"]
[TimeControl "180+1"]
[EndTime "10:41:17 PST"]
[Termination "Lion-Al-Messi won by resignation"]

1. Nf3 {[%clk 0:03:00.9]} 1... b6 {[%clk 0:03:00.9]} 2. g3 {[%clk 0:03:00.8]}
2... Bb7 {[%clk 0:03:01.8]} 3. Bg2 {[%clk 0:03:01.2]} 3... Nf6 {[%clk
0:03:01.3]} 4. O-O {[%clk 0:03:00.4]} 4... e6 {[%clk 0:03:01.8]} 5. d3 {[%clk
0:02:59.6]} 5... Be7 {[%clk 0:03:02.1]} 6. e4 {[%clk 0:02:59.6]} 6... O-O {[%clk
0:03:01.9]} 7. Nbd2 {[%clk 0:02:58.4]} 7... d6 {[%clk 0:03:01.5]} 8. Re1 {[%clk
0:02:58]} 8... Nbd7 {[%clk 0:03:01.7]} 9. d4 {[%clk 0:02:46.6]} 9... c5 {[%clk
0:03:00.1]} 10. c3 {[%clk 0:02:46.5]} 10... Rc8 {[%clk 0:02:58.9]} 11. a3 {[%clk
0:02:45.2]} 11... Qc7 {[%clk 0:02:58.2]} 12. h3 {[%clk 0:02:41.9]} 12... Rfd8
{[%clk 0:02:56.6]} 13. Qe2 {[%clk 0:02:38.4]} 13... Qb8 {[%clk 0:02:55.3]} 14.
e5 {[%clk 0:02:34.4]} 14... dxe5 {[%clk 0:02:54.8]} 15. dxe5 {[%clk 0:02:35.3]}
15... Ne8 {[%clk 0:02:48.9]} 16. Nf1 {[%clk 0:02:25.9]} 16... c4 {[%clk
0:02:27.2]} 17. N1h2 {[%clk 0:01:50.7]} 17... Nc5 {[%clk 0:02:26.9]} 18. Bg5
{[%clk 0:01:50.6]} 18... Bxg5 {[%clk 0:02:20.1]} 19. Nxg5 {[%clk 0:01:51.5]}
19... Bxg2 {[%clk 0:02:19.8]} 20. Kxg2 {[%clk 0:01:51.6]} 20... h6 {[%clk
0:02:06.6]} 21. Ngf3 {[%clk 0:01:48.1]} 21... Nd3 {[%clk 0:01:46.8]} 22. Red1
{[%clk 0:01:48.1]} 22... Qb7 {[%clk 0:01:46.4]} 23. a4 {[%clk 0:01:31.7]} 23...
Rd5 {[%clk 0:01:45.7]} 24. Kg1 {[%clk 0:01:29.7]} 24... Rcd8 {[%clk 0:01:41.7]}
25. Ng4 {[%clk 0:01:27]} 25... Nxb2 {[%clk 0:01:26.5]} 26. Rxd5 {[%clk 0:01:21]}
26... Qxd5 {[%clk 0:01:27.4]} 27. Nd4 {[%clk 0:01:15.4]} 27... Nd3 {[%clk
0:01:13.3]} 28. f4 {[%clk 0:01:15.2]} 28... h5 {[%clk 0:00:32.4]} 29. Nf2 {[%clk
0:01:15]} 29... Nxf2 {[%clk 0:00:32.5]} 30. Kxf2 {[%clk 0:01:15.6]} 30... g6
{[%clk 0:00:33.1]} 31. g4 {[%clk 0:01:15.4]} 31... Ng7 {[%clk 0:00:32.9]} 32.
Rg1 {[%clk 0:01:10.5]} 32... Kf8 {[%clk 0:00:29.7]} 33. Qe3 {[%clk 0:01:07.6]}
33... Qc5 {[%clk 0:00:27.9]} 34. Rd1 {[%clk 0:01:01.8]} 34... Qa3 {[%clk
0:00:24.6]} 35. Kf3 {[%clk 0:00:55.5]} 35... Qxa4 {[%clk 0:00:20.6]} 36. gxh5
{[%clk 0:00:55.9]} 36... gxh5 {[%clk 0:00:17.5]} 37. f5 {[%clk 0:00:53.1]} 37...
Qxd1+ {[%clk 0:00:12]} 0-1

[Event "*** Titled Tuesday Blitz"]
[Site "Chess.com"]
[Date "2020.11.03"]
[Round "4"]
[White "Fortitudine"]
[Black "grandcoach"]
[Result "1-0"]
[WhiteElo "2279"]
[BlackElo "2081"]
[TimeControl "180+1"]
[EndTime "10:41:18 PST"]
[Termination "Fortitudine won on time"]

1. c4 {[%clk 0:03:00.9]} 1... Nf6 {[%clk 0:02:59.1]} 2. g3 {[%clk 0:03:00.4]}
2... e6 {[%clk 0:02:49.1]} 3. Bg2 {[%clk 0:03:00.1]} 3... d5 {[%clk 0:02:49.5]}
4. Nf3 {[%clk 0:02:57.7]} 4... dxc4 {[%clk 0:02:48.1]} 5. Qc2 {[%clk 0:02:55]}
5... Nbd7 {[%clk 0:02:26.7]} 6. Qxc4 {[%clk 0:02:50.1]} 6... b6 {[%clk
0:02:20.7]} 7. Nd4 {[%clk 0:02:13.9]} 7... Nd5 {[%clk 0:01:38.2]} 8. Bxd5 {[%clk
0:01:43]} 8... exd5 {[%clk 0:01:36.6]} 9. Qxd5 {[%clk 0:01:42.4]} 9... Ba6
{[%clk 0:01:17.8]} 10. Qe4+ {[%clk 0:01:24.5]} 10... Be7 {[%clk 0:00:58.5]} 11.
Nf5 {[%clk 0:01:05.7]} 11... Nf6 {[%clk 0:00:35.1]} 12. Qxe7+ {[%clk 0:00:44.4]}
12... Qxe7 {[%clk 0:00:33.9]} 13. Nxe7 {[%clk 0:00:45.3]} 13... Kxe7 {[%clk
0:00:34.3]} 14. d3 {[%clk 0:00:45.9]} 14... Rhe8 {[%clk 0:00:27]} 15. O-O {[%clk
0:00:43.7]} 15... Kf8 {[%clk 0:00:24.8]} 16. Nc3 {[%clk 0:00:43.9]} 16... Rad8
{[%clk 0:00:21.5]} 17. Bg5 {[%clk 0:00:43.6]} 17... Re6 {[%clk 0:00:12.2]} 18.
Rfe1 {[%clk 0:00:42.8]} 18... h6 {[%clk 0:00:11.3]} 19. Bxf6 {[%clk 0:00:43.1]}
19... Rxf6 {[%clk 0:00:11.2]} 20. Rad1 {[%clk 0:00:43.1]} 20... c5 {[%clk
0:00:10]} 21. b3 {[%clk 0:00:39.6]} 21... Re6 {[%clk 0:00:08.6]} 22. Rd2 {[%clk
0:00:38.9]} 22... Rxd3 {[%clk 0:00:03.5]} 23. Rxd3 {[%clk 0:00:35.4]} 23... Bxd3
{[%clk 0:00:04.4]} 24. f3 {[%clk 0:00:31.2]} 24... Ba6 {[%clk 0:00:03.4]} 25.
Kf2 {[%clk 0:00:31.5]} 25... Rd6 {[%clk 0:00:03.1]} 26. Rd1 {[%clk 0:00:29.5]}
1-0

[Event "*** Titled Tuesday Blitz"]
[Site "Chess.com"]
[Date "2020.11.03"]
[Round "4"]
[White "Anton_Demchenko"]
[Black "Yashasd1995"]
[Result "0-1"]
[WhiteElo "2832"]
[BlackElo "2564"]
[TimeControl "180+1"]
[EndTime "10:41:19 PST"]
[Termination "Yashasd1995 won on time"]

1. e4 {[%clk 0:03:00.9]} 1... d5 {[%clk 0:02:59]} 2. exd5 {[%clk 0:03:00.1]}
2... Nf6 {[%clk 0:02:59.4]} 3. Nf3 {[%clk 0:02:57]} 3... Nxd5 {[%clk 0:02:58.7]}
4. d4 {[%clk 0:02:56.6]} 4... g6 {[%clk 0:02:59.1]} 5. h3 {[%clk 0:02:54.2]}
5... Bg7 {[%clk 0:02:58.7]} 6. c4 {[%clk 0:02:53.1]} 6... Nb6 {[%clk 0:02:58]}
7. Nc3 {[%clk 0:02:52.6]} 7... O-O {[%clk 0:02:57.7]} 8. Be2 {[%clk 0:02:52.5]}
8... Nc6 {[%clk 0:02:57]} 9. Be3 {[%clk 0:02:49.6]} 9... e5 {[%clk 0:02:56.9]}
10. d5 {[%clk 0:02:46]} 10... Ne7 {[%clk 0:02:56.8]} 11. O-O {[%clk 0:02:44]}
11... Nf5 {[%clk 0:02:56.6]} 12. Bc5 {[%clk 0:02:43.8]} 12... Re8 {[%clk
0:02:56.9]} 13. Ne4 {[%clk 0:02:28.5]} 13... Nd7 {[%clk 0:02:26.5]} 14. Bb4
{[%clk 0:02:13.8]} 14... Nd4 {[%clk 0:02:25.3]} 15. Re1 {[%clk 0:01:52.4]} 15...
Nxf3+ {[%clk 0:02:21.4]} 16. Bxf3 {[%clk 0:01:48.3]} 16... f5 {[%clk 0:02:21.9]}
17. Nc3 {[%clk 0:01:34.5]} 17... e4 {[%clk 0:02:21]} 18. Be2 {[%clk 0:01:35]}
18... a5 {[%clk 0:02:12.9]} 19. Ba3 {[%clk 0:01:33.9]} 19... Ne5 {[%clk
0:02:08.4]} 20. Nb5 {[%clk 0:01:24.9]} 20... Bd7 {[%clk 0:01:58.3]} 21. d6
{[%clk 0:01:23]} 21... Bxb5 {[%clk 0:01:54.5]} 22. cxb5 {[%clk 0:01:06.2]} 22...
cxd6 {[%clk 0:01:53.7]} 23. Qd5+ {[%clk 0:01:04.4]} 23... Kh8 {[%clk 0:01:46.9]}
24. Rad1 {[%clk 0:00:57]} 24... Qg5 {[%clk 0:01:21.4]} 25. Qxb7 {[%clk
0:00:52.4]} 25... Rad8 {[%clk 0:01:21.2]} 26. Bxd6 {[%clk 0:00:32.5]} 26... e3
{[%clk 0:01:18.3]} 27. f3 {[%clk 0:00:31.7]} 27... Qg3 {[%clk 0:01:17.7]} 28.
Kh1 {[%clk 0:00:28]} 28... Rxd6 {[%clk 0:01:05.6]} 29. Qc7 {[%clk 0:00:20.4]}
29... Rd7 {[%clk 0:00:48.3]} 30. Qc1 {[%clk 0:00:13.7]} 30... Bh6 {[%clk
0:00:41.2]} 31. Rxd7 {[%clk 0:00:10.3]} 31... Nxd7 {[%clk 0:00:42.1]} 32. Qc3+
{[%clk 0:00:01.7]} 32... Bg7 {[%clk 0:00:41.8]} 0-1

[Event "*** Titled Tuesday Blitz"]
[Site "Chess.com"]
[Date "2020.11.03"]
[Round "4"]
[White "ShimanovAlex"]
[Black "almatyonelove"]
[Result "1-0"]
[WhiteElo "2810"]
[BlackElo "2586"]
[TimeControl "180+1"]
[EndTime "10:41:20 PST"]
[Termination "ShimanovAlex won on time"]

1. Nf3 {[%clk 0:03:00.9]} 1... d5 {[%clk 0:02:59.3]} 2. e3 {[%clk 0:03:00.1]}
2... g6 {[%clk 0:02:42.8]} 3. c4 {[%clk 0:02:52.7]} 3... e6 {[%clk 0:02:37.4]}
4. Nc3 {[%clk 0:02:49.8]} 4... Bg7 {[%clk 0:02:28.3]} 5. b3 {[%clk 0:02:49.3]}
5... Ne7 {[%clk 0:02:26.2]} 6. Bb2 {[%clk 0:02:46]} 6... O-O {[%clk 0:02:26.4]}
7. d4 {[%clk 0:02:41.2]} 7... b6 {[%clk 0:01:55.1]} 8. Rc1 {[%clk 0:02:36.3]}
8... Bb7 {[%clk 0:01:52.2]} 9. Be2 {[%clk 0:02:31.6]} 9... Nd7 {[%clk
0:01:47.2]} 10. O-O {[%clk 0:02:22.9]} 10... a6 {[%clk 0:01:46]} 11. Na4 {[%clk
0:02:17.8]} 11... dxc4 {[%clk 0:01:40.2]} 12. bxc4 {[%clk 0:02:15.7]} 12... Bc6
{[%clk 0:01:32.5]} 13. Ba3 {[%clk 0:02:12.7]} 13... Re8 {[%clk 0:01:29.7]} 14.
Nc3 {[%clk 0:02:11.2]} 14... Bb7 {[%clk 0:01:27.8]} 15. Qb3 {[%clk 0:02:08.9]}
15... Rc8 {[%clk 0:01:27]} 16. Rfd1 {[%clk 0:02:04.5]} 16... Nf6 {[%clk
0:01:23.9]} 17. Ne5 {[%clk 0:02:02.8]} 17... Ne4 {[%clk 0:01:23.3]} 18. Nxe4
{[%clk 0:01:44.8]} 18... Bxe4 {[%clk 0:01:22.9]} 19. f3 {[%clk 0:01:17.7]} 19...
Ba8 {[%clk 0:01:15.7]} 20. Nd3 {[%clk 0:01:04.7]} 20... Qd7 {[%clk 0:00:48.8]}
21. c5 {[%clk 0:00:53.8]} 21... Bd5 {[%clk 0:00:33.4]} 22. Qc2 {[%clk
0:00:48.6]} 22... Bc6 {[%clk 0:00:26.7]} 23. Ne5 {[%clk 0:00:45.7]} 23... Qd8
{[%clk 0:00:19.4]} 24. cxb6 {[%clk 0:00:43.9]} 24... cxb6 {[%clk 0:00:12.9]} 25.
Bxe7 {[%clk 0:00:43.1]} 25... Qxe7 {[%clk 0:00:13.8]} 26. Nxc6 {[%clk 0:00:43]}
26... Qb7 {[%clk 0:00:13.7]} 27. f4 {[%clk 0:00:41.3]} 27... Rc7 {[%clk
0:00:07.3]} 28. Bf3 {[%clk 0:00:40.6]} 1-0

[Event "*** Titled Tuesday Blitz"]
[Site "Chess.com"]
[Date "2020.11.03"]
[Round "4"]
[White "TokChess"]
[Black "VladimirBugayev"]
[Result "1-0"]
[WhiteElo "2467"]
[BlackElo "2309"]
[TimeControl "180+1"]
[EndTime "10:41:21 PST"]
[Termination "TokChess won by resignation"]

1. c4 {[%clk 0:03:00.4]} 1... c5 {[%clk 0:02:59.2]} 2. Nf3 {[%clk 0:03:00]} 2...
g6 {[%clk 0:02:59.7]} 3. g3 {[%clk 0:02:59.3]} 3... Bg7 {[%clk 0:03:00.2]} 4.
Bg2 {[%clk 0:02:59.8]} 4... Nc6 {[%clk 0:03:00.6]} 5. O-O {[%clk 0:03:00.5]}
5... e5 {[%clk 0:03:01]} 6. Nc3 {[%clk 0:03:00.7]} 6... Nge7 {[%clk 0:02:58.2]}
7. a3 {[%clk 0:03:01]} 7... a5 {[%clk 0:02:57.1]} 8. Rb1 {[%clk 0:02:57.5]} 8...
Rb8 {[%clk 0:02:49.3]} 9. Ne1 {[%clk 0:02:57.4]} 9... d6 {[%clk 0:02:38]} 10.
Nc2 {[%clk 0:02:57.1]} 10... Bf5 {[%clk 0:02:29.1]} 11. d3 {[%clk 0:02:54.8]}
11... Nd4 {[%clk 0:02:25.2]} 12. Ne3 {[%clk 0:02:47.6]} 12... Bd7 {[%clk
0:02:22]} 13. b4 {[%clk 0:02:46.9]} 13... axb4 {[%clk 0:02:18]} 14. axb4 {[%clk
0:02:47.8]} 14... b6 {[%clk 0:02:17.5]} 15. Ned5 {[%clk 0:02:45.1]} 15... O-O
{[%clk 0:01:49.4]} 16. Nxe7+ {[%clk 0:02:44.2]} 16... Qxe7 {[%clk 0:01:49]} 17.
Nd5 {[%clk 0:02:45.1]} 17... Qd8 {[%clk 0:01:49]} 18. e3 {[%clk 0:02:42.2]}
18... Nc6 {[%clk 0:01:41.2]} 19. Bd2 {[%clk 0:02:31.2]} 19... Ne7 {[%clk
0:01:15.3]} 20. Nc3 {[%clk 0:01:26.9]} 20... Bc6 {[%clk 0:01:11.3]} 21. Bxc6
{[%clk 0:01:19.8]} 21... Nxc6 {[%clk 0:01:10.5]} 22. Nd5 {[%clk 0:01:18.7]}
22... Ne7 {[%clk 0:01:05.1]} 23. Qf3 {[%clk 0:01:17.7]} 23... Nf5 {[%clk
0:00:57.8]} 24. Bc3 {[%clk 0:00:59.7]} 24... h5 {[%clk 0:00:51.7]} 25. e4 {[%clk
0:00:55.7]} 25... Nh6 {[%clk 0:00:36.7]} 26. bxc5 {[%clk 0:00:54.5]} 26... bxc5
{[%clk 0:00:35.2]} 27. Rb5 {[%clk 0:00:52.8]} 27... f5 {[%clk 0:00:26]} 28. Rfb1
{[%clk 0:00:46.1]} 28... Ra8 {[%clk 0:00:23.9]} 29. Rb7 {[%clk 0:00:43.3]} 29...
Rf7 {[%clk 0:00:21.6]} 30. Rxf7 {[%clk 0:00:41.1]} 30... Nxf7 {[%clk 0:00:16.4]}
31. exf5 {[%clk 0:00:40]} 31... gxf5 {[%clk 0:00:13.8]} 32. Qxf5 {[%clk
0:00:39.9]} 32... Ra3 {[%clk 0:00:11.2]} 33. Rb7 {[%clk 0:00:38.9]} 33... Qf8
{[%clk 0:00:09.3]} 34. Ne7+ {[%clk 0:00:36.4]} 34... Kh8 {[%clk 0:00:08]} 35.
Ng6+ {[%clk 0:00:36.3]} 1-0

[Event "*** Titled Tuesday Blitz"]
[Site "Chess.com"]
[Date "2020.11.03"]
[Round "4"]
[White "MoreChessJulia"]
[Black "ErikRonka"]
[Result "0-1"]
[WhiteElo "2066"]
[BlackElo "2380"]
[TimeControl "180+1"]
[EndTime "10:41:21 PST"]
[Termination "ErikRonka won by resignation"]

1. d4 {[%clk 0:02:59.3]} 1... d5 {[%clk 0:02:37.7]} 2. c4 {[%clk 0:02:58.9]}
2... c6 {[%clk 0:02:36.2]} 3. Nf3 {[%clk 0:02:59]} 3... Nf6 {[%clk 0:02:34.2]}
4. Nc3 {[%clk 0:02:58.9]} 4... e6 {[%clk 0:02:34.1]} 5. e3 {[%clk 0:02:58.5]}
5... Nbd7 {[%clk 0:02:32.2]} 6. Bd3 {[%clk 0:02:58.3]} 6... dxc4 {[%clk
0:02:31.1]} 7. Bxc4 {[%clk 0:02:58.5]} 7... b5 {[%clk 0:02:30.5]} 8. Bd3 {[%clk
0:02:58.8]} 8... Bb7 {[%clk 0:02:29.8]} 9. e4 {[%clk 0:02:58.5]} 9... b4 {[%clk
0:02:29.3]} 10. Na4 {[%clk 0:02:53.3]} 10... c5 {[%clk 0:02:29.8]} 11. e5 {[%clk
0:02:52.3]} 11... Nd5 {[%clk 0:02:29]} 12. Nxc5 {[%clk 0:02:51.7]} 12... Nxc5
{[%clk 0:02:26.8]} 13. dxc5 {[%clk 0:02:51.5]} 13... Bxc5 {[%clk 0:02:27.7]} 14.
Bb5+ {[%clk 0:02:51.1]} 14... Kf8 {[%clk 0:02:27]} 15. O-O {[%clk 0:02:47.8]}
15... h6 {[%clk 0:02:26.6]} 16. Qe2 {[%clk 0:02:43.5]} 16... g6 {[%clk
0:02:17.4]} 17. Rd1 {[%clk 0:02:42.2]} 17... Kg7 {[%clk 0:02:10]} 18. h4 {[%clk
0:02:28.5]} 18... Qb6 {[%clk 0:02:00.9]} 19. Bd3 {[%clk 0:02:23.9]} 19... a5
{[%clk 0:01:49.7]} 20. h5 {[%clk 0:02:23.5]} 20... g5 {[%clk 0:01:49.4]} 21. g3
{[%clk 0:02:18.6]} 21... Ba6 {[%clk 0:01:46.1]} 22. Bxa6 {[%clk 0:02:07.6]}
22... Qxa6 {[%clk 0:01:47]} 23. Qxa6 {[%clk 0:01:58.1]} 23... Rxa6 {[%clk
0:01:47.9]} 24. Bd2 {[%clk 0:01:56.9]} 24... Rc8 {[%clk 0:01:38.2]} 25. Be1
{[%clk 0:01:54.4]} 25... Rac6 {[%clk 0:01:35.1]} 26. Nd2 {[%clk 0:01:41.1]}
26... Bd4 {[%clk 0:01:26.1]} 27. Nf3 {[%clk 0:01:40.2]} 27... Bxb2 {[%clk
0:01:23.6]} 28. Rab1 {[%clk 0:01:39.9]} 28... Bc3 {[%clk 0:01:18.8]} 29. Rd3
{[%clk 0:01:32.1]} 29... Bxe1 {[%clk 0:01:17.5]} 30. Rxe1 {[%clk 0:01:30.8]}
30... Rc3 {[%clk 0:01:11.2]} 31. Rxc3 {[%clk 0:01:29.1]} 31... Rxc3 {[%clk
0:01:12.1]} 32. Kg2 {[%clk 0:01:28.9]} 32... Rc2 {[%clk 0:01:09]} 33. Ra1 {[%clk
0:01:23.3]} 33... Ne3+ {[%clk 0:01:05.2]} 34. Kg1 {[%clk 0:01:23]} 34... Ng4
{[%clk 0:01:02.3]} 35. Nd4 {[%clk 0:01:03.6]} 35... Rxf2 {[%clk 0:00:56.1]} 36.
Rc1 {[%clk 0:01:03.7]} 36... Rd2 {[%clk 0:00:52.8]} 37. Nf3 {[%clk 0:01:01.1]}
37... Rxa2 {[%clk 0:00:45.6]} 38. Rc7 {[%clk 0:01:00.2]} 38... b3 {[%clk
0:00:44.7]} 39. Nd4 {[%clk 0:00:48.5]} 39... Nxe5 {[%clk 0:00:29.7]} 40. Nxe6+
{[%clk 0:00:47.1]} 40... Kf6 {[%clk 0:00:29.4]} 41. Nd4 {[%clk 0:00:41.5]} 41...
b2 {[%clk 0:00:28.4]} 0-1

[Event "*** Titled Tuesday Blitz"]
[Site "Chess.com"]
[Date "2020.11.03"]
[Round "4"]
[White "Beltraxtor"]
[Black "Zarikovs1999"]
[Result "0-1"]
[WhiteElo "2525"]
[BlackElo "2347"]
[TimeControl "180+1"]
[EndTime "10:41:25 PST"]
[Termination "Zarikovs1999 won on time"]

1. e4 {[%clk 0:03:00.9]} 1... c5 {[%clk 0:02:57.6]} 2. Nf3 {[%clk 0:03:00.7]}
2... d6 {[%clk 0:02:58.2]} 3. Bb5+ {[%clk 0:03:00.6]} 3... Nd7 {[%clk
0:02:58.6]} 4. d4 {[%clk 0:03:00]} 4... cxd4 {[%clk 0:02:58.7]} 5. Qxd4 {[%clk
0:03:00.9]} 5... a6 {[%clk 0:02:58.7]} 6. Bxd7+ {[%clk 0:03:00.9]} 6... Qxd7
{[%clk 0:02:59.6]} 7. Nc3 {[%clk 0:02:59.9]} 7... e5 {[%clk 0:02:59.3]} 8. Qd3
{[%clk 0:02:59.8]} 8... f5 {[%clk 0:02:59]} 9. O-O {[%clk 0:02:54]} 9... Nf6
{[%clk 0:02:56]} 10. Bg5 {[%clk 0:02:53.5]} 10... fxe4 {[%clk 0:02:25.2]} 11.
Nxe4 {[%clk 0:02:50.9]} 11... Nxe4 {[%clk 0:02:23.8]} 12. Qxe4 {[%clk
0:02:51.8]} 12... Qf5 {[%clk 0:02:10.9]} 13. Qd5 {[%clk 0:02:27.5]} 13... Qf7
{[%clk 0:02:06.9]} 14. Rad1 {[%clk 0:01:30.5]} 14... Qxd5 {[%clk 0:02:06]} 15.
Rxd5 {[%clk 0:01:30.6]} 15... Be6 {[%clk 0:02:06.9]} 16. Rd2 {[%clk 0:01:30.4]}
16... h6 {[%clk 0:02:07.3]} 17. Be3 {[%clk 0:01:30]} 17... Be7 {[%clk
0:02:07.4]} 18. Bb6 {[%clk 0:01:25.3]} 18... Rc8 {[%clk 0:02:05.2]} 19. Re1
{[%clk 0:01:19.9]} 19... Rf8 {[%clk 0:01:56.9]} 20. Re3 {[%clk 0:01:13.8]} 20...
Rc6 {[%clk 0:01:48.7]} 21. Bd4 {[%clk 0:01:05]} 21... Bg4 {[%clk 0:01:31.4]} 22.
Bxe5 {[%clk 0:00:53]} 22... Bxf3 {[%clk 0:01:17.5]} 23. Bxd6 {[%clk 0:00:50.2]}
23... Rxd6 {[%clk 0:01:18]} 24. Rxd6 {[%clk 0:00:49.8]} 24... Bc6 {[%clk
0:01:13.3]} 25. c4 {[%clk 0:00:42.8]} 25... Rf4 {[%clk 0:01:00.9]} 26. Rde6
{[%clk 0:00:37.9]} 26... Rf7 {[%clk 0:01:01.4]} 27. Rg6 {[%clk 0:00:29]} 27...
Kd7 {[%clk 0:00:58.6]} 28. Rg4 {[%clk 0:00:14.8]} 28... Bc5 {[%clk 0:00:57.4]}
29. Rd3+ {[%clk 0:00:14.5]} 29... Kc7 {[%clk 0:00:58]} 30. Rd2 {[%clk
0:00:14.8]} 30... Re7 {[%clk 0:00:56.3]} 31. Kf1 {[%clk 0:00:13.8]} 31... Bb4
{[%clk 0:00:52.3]} 32. Rd1 {[%clk 0:00:10.9]} 32... Be4 {[%clk 0:00:44.1]} 33.
a3 {[%clk 0:00:03.2]} 33... Bd3+ {[%clk 0:00:43.6]} 34. Kg1 {[%clk 0:00:03]}
34... Be2 {[%clk 0:00:44.3]} 35. axb4 {[%clk 0:00:02]} 35... Bxd1 {[%clk
0:00:44]} 0-1